[Event "DVM U12w 2023"]
[Site "Magdeburg"]
[Date "2023.12.27"]
[Round "2"]
[White "Shakhimardanova, Nigina"]
[Black "Will, Elina"]
[Result "0-1"]
[WhiteElo "1067"]
[BlackElo "1325"]
[PlyCount "116"]
[EventDate "2022.12.27"]
[EventType "team-tourn"]
[EventRounds "7"]
[EventCountry "GER"]
[TimeControl "40/5400+30:1800+30"]
[WhiteClock "1:23:08"]
[BlackClock "1:40:32"]

1. e4 d5 {[%emt 0:00:05]} 2. exd5 {[%emt 0:00:36]} Nf6 {[%emt 0:00:05]} 3. Nf3 {[%emt 0:00:30]} Nxd5 {[%emt 0:00:10]} 4. d4 {[%emt 0:00:08]} Bf5 {[%emt 0:00:10]} 5. Bd3 {[%emt 0:00:13]} Qd7 {[%emt 0:01:06]} 6. Nc3 {[%emt 0:00:20]} Nb4 {[%emt 0:01:35]} 7. O-O {[%emt 0:01:10]} Nxd3 {[%emt 0:00:33]} 8. cxd3 {[%emt 0:00:07]} Nc6 {[%emt 0:00:15]} 9. d5 {[%emt 0:01:17]} Nb4 {[%emt 0:00:55]} 10. Ne5 {[%emt 0:01:10]} Qd6 {[%emt 0:00:15]} 11. d4 {[%emt 0:00:15]} Nxd5 {[%emt 0:00:25]} 12. Qf3 {[%emt 0:00:59]} e6 {[%emt 0:00:47]} 13. Bf4 {[%emt 0:00:26]} Nxf4 {[%emt 0:00:17]} 14. Qxf4 {[%emt 0:00:08]} f6 {[%emt 0:00:30]} 15. Rad1 {[%emt 0:01:42]} fxe5 {[%emt 0:00:22]} 16. dxe5 {[%emt 0:00:10]} Qc6 {[%emt 0:00:26]} 17. Rd2 {[%emt 0:03:07]} Be7 {[%emt 0:00:22]} 18. Rfd1 {[%emt 0:01:53]} O-O {[%emt 0:00:55]} 19. Rd7 {[%emt 0:00:45]} Bc5 {[%emt 0:00:07]} 20. Qg3 {[%emt 0:01:17]} Bg6 {[%emt 0:00:18]} 21. R7d2 {[%emt 0:01:49]} Rae8 {[%emt 0:01:02]} 22. Kh1 {[%emt 0:03:01]} Re7 {[%emt 0:00:09]} 23. a4 {[%emt 0:00:51]} a6 {[%emt 0:00:10]} 24. b3 {[%emt 0:00:09]} Ref7 {[%emt 0:00:12]} 25. Rf1 {[%emt 0:00:06]} Qb6 {[%emt 0:00:34]} 26. f3 {[%emt 0:00:45]} Qxb3 {[%emt 0:00:26]} 27. f4 {[%emt 0:01:12]} Qc4 {[%emt 0:00:38]} 28. Rfd1 {[%emt 0:01:55]} Qxf4 {[%emt 0:00:16]} 29. Qxf4 {[%emt 0:00:57]} Rxf4 {[%emt 0:00:06]} 30. h3 {[%emt 0:00:13]} Rf1+ {[%emt 0:00:05]} 31. Rxf1 {[%emt 0:00:14]} Rxf1+ {[%emt 0:00:06]} 32. Kh2 {[%emt 0:00:04]} Bb4 {[%emt 0:01:05]} 33. Rd8+ {[%emt 0:00:50]} Rf8 {[%emt 0:00:12]} 34. Rxf8+ {[%emt 0:00:04]} Kxf8 {[%emt 0:00:09]} 35. Ne2 {[%emt 0:00:08]} Bd3 {[%emt 0:00:12]} 36. Nd4 {[%emt 0:00:27]} Ke7 {[%emt 0:00:19]} 37. Kg3 {[%emt 0:00:19]} Bc3 {[%emt 0:00:09]} 38. Nb3 {[%emt 0:00:13]} Bxe5+ {[%emt 0:00:07]} 39. Kf3 {[%emt 0:00:27]} Bc4 {[%emt 0:00:24]} 40. Nd2 {[%emt 0:01:13]} Bd5+ {[%emt 0:00:10]} 41. Kf2 {[%emt 0:30:15]} Bf4 {[%emt 0:30:21]} 42. Nb1 {[%emt 0:01:08]} Bb3 {[%emt 0:00:14]} 43. Nc3 {[%emt 0:00:25]} Be5 {[%emt 0:00:04]} 44. Nb1 {[%emt 0:00:14]} Bxa4 {[%emt 0:00:05]} 45. g4 {[%emt 0:00:18]} Bc2 {[%emt 0:00:10]} 46. Nd2 {[%emt 0:00:21]} b5 {[%emt 0:00:08]} 47. h4 {[%emt 0:00:14]} c5 {[%emt 0:00:05]} 48. g5 {[%emt 0:00:10]} c4 {[%emt 0:00:08]} 49. Ne4 {[%emt 0:00:16]} Bxe4 {[%emt 0:00:05]} 50. h5 {[%emt 0:00:25]} c3 {[%emt 0:00:07]} 51. Ke2 {[%emt 0:00:16]} c2 {[%emt 0:00:07]} 52. Ke3 {[%emt 0:00:10]} c1=Q+ {[%emt 0:00:08]} 53. Kxe4 {[%emt 0:00:05]} Qf4+ {[%emt 0:00:05]} 54. Kd3 {[%emt 0:00:06]} Qc4+ {[%emt 0:00:28]} 55. Kd2 {[%emt 0:00:08]} Bf4+ {[%emt 0:00:06]} 56. Ke1 {[%emt 0:00:11]} Qc2 {[%emt 0:00:08]} 57. g6 {[%emt 0:00:24]} Bg3+ {[%emt 0:00:06]} 58. Kf1 {[%emt 0:00:06]} Qf2# {[%emt 0:00:14] normal} 0-1

[Event "DVM U12w 2023"]
[Site "Magdeburg"]
[Date "2023.12.27"]
[Round "2"]
[White "Roessler, Helena"]
[Black "Schmidt Guevara, Daniela"]
[Result "1/2-1/2"]
[WhiteElo "1060"]
[BlackElo "1083"]
[PlyCount "64"]
[EventDate "2022.12.27"]
[EventType "team-tourn"]
[EventRounds "7"]
[EventCountry "GER"]
[TimeControl "40/5400+30:1800+30"]
[WhiteClock "1:03:03"]
[BlackClock "1:08:16"]

1. Nf3 {[%emt 0:00:02]} d5 {[%emt 0:00:19]} 2. g3 {[%emt 0:00:11]} Nc6 {[%emt 0:00:34]} 3. Bg2 {[%emt 0:00:08]} Nf6 {[%emt 0:00:50]} 4. O-O {[%emt 0:00:14]} Bf5 {[%emt 0:00:50]} 5. d3 {[%emt 0:00:35]} e5 {[%emt 0:00:48]} 6. Nbd2 {[%emt 0:01:14]} Bc5 {[%emt 0:01:04]} 7. c4 {[%emt 0:00:36]} dxc4 {[%emt 0:00:52]} 8. Nxc4 {[%emt 0:00:13]} e4 {[%emt 0:00:54]} 9. dxe4 {[%emt 0:02:08]} Qxd1 {[%emt 0:00:30]} 10. Rxd1 {[%emt 0:00:16]} Bxe4 {[%emt 0:00:49]} 11. Bf4 {[%emt 0:02:25]} Nd5 {[%emt 0:01:04]} 12. Be5 {[%emt 0:05:13]} O-O {[%emt 0:00:56]} 13. Rac1 {[%emt 0:12:02]} Rae8 {[%emt 0:03:34]} 14. Bc3 {[%emt 0:03:42]} Nxc3 {[%emt 0:00:59]} 15. Rxc3 {[%emt 0:00:34]} Bxf3 {[%emt 0:01:17]} 16. Bxf3 {[%emt 0:00:15]} Ne5 {[%emt 0:03:00]} 17. Bxb7 {[%emt 0:01:47]} Ng4 {[%emt 0:01:54]} 18. e3 {[%emt 0:00:32]} Ne5 {[%emt 0:04:03]} 19. Nxe5 {[%emt 0:01:01]} Rxe5 {[%emt 0:00:34]} 20. Rd7 {[%emt 0:00:36]} Bb6 {[%emt 0:01:19]} 21. Bg2 {[%emt 0:00:41]} Ree8 {[%emt 0:02:42]} 22. b4 {[%emt 0:02:09]} Rd8 {[%emt 0:00:46]} 23. Rcd3 {[%emt 0:00:13]} Rxd7 {[%emt 0:00:54]} 24. Rxd7 {[%emt 0:00:13]} c5 {[%emt 0:00:44]} 25. bxc5 {[%emt 0:01:02]} Bxc5 {[%emt 0:00:21]} 26. Kf1 {[%emt 0:00:59]} a5 {[%emt 0:00:37]} 27. Bd5 {[%emt 0:02:12]} h6 {[%emt 0:00:29]} 28. Bb3 {[%emt 0:00:09]} Bb4 {[%emt 0:01:27]} 29. Ke2 {[%emt 0:01:08]} h5 {[%emt 0:00:44]} 30. e4 {[%emt 0:00:14]} Bc3 {[%emt 0:00:51]} 31. Kd3 {[%emt 0:00:17]} Bf6 {[%emt 0:01:31]} 32. f4 {[%emt 0:00:26]} Rd8 {[%emt 0:00:58] normal} 1/2-1/2

[Event "DVM U12w 2023"]
[Site "Magdeburg"]
[Date "2023.12.27"]
[Round "2"]
[White "Artemenko, Isabella"]
[Black "Rätsch, Elina"]
[Result "1-0"]
[WhiteElo "1041"]
[BlackElo "869"]
[PlyCount "44"]
[EventDate "2022.12.27"]
[EventType "team-tourn"]
[EventRounds "7"]
[EventCountry "GER"]
[TimeControl "40/5400+30:1800+30"]
[WhiteClock "0:47:45"]
[BlackClock "1:13:51"]

1. d4 {[%emt 0:00:04]} d5 {[%emt 0:00:14]} 2. Bf4 {[%emt 0:00:09]} Nc6 {[%emt 0:01:11]} 3. e3 {[%emt 0:00:52]} Nf6 {[%emt 0:00:31]} 4. c3 {[%emt 0:01:29]} a6 {[%emt 0:00:25]} 5. Nd2 {[%emt 0:07:41]} Bf5 {[%emt 0:01:38]} 6. Ngf3 {[%emt 0:02:20]} e6 {[%emt 0:00:45]} 7. Ne5 {[%emt 0:01:30]} Bd6 {[%emt 0:01:42]} 8. Ndf3 {[%emt 0:14:23]} Bg4 {[%emt 0:01:38]} 9. Nxg4 {[%emt 0:00:35]} Nxg4 {[%emt 0:00:20]} 10. Bg3 {[%emt 0:02:36]} O-O {[%emt 0:01:02]} 11. Qc2 {[%emt 0:02:42]} e5 {[%emt 0:02:12]} 12. Qb3 {[%emt 0:03:40]} e4 {[%emt 0:01:47]} 13. Nd2 {[%emt 0:00:54]} Ne7 {[%emt 0:01:09]} 14. Be2 {[%emt 0:01:24]} Qd7 {[%emt 0:02:07]} 15. Bxd6 {[%emt 0:00:57]} cxd6 {[%emt 0:00:54]} 16. h3 {[%emt 0:00:31]} Nf6 {[%emt 0:01:42]} 17. O-O {[%emt 0:00:55]} Nf5 {[%emt 0:00:50]} 18. Rac1 {[%emt 0:02:42]} Rac8 {[%emt 0:02:45]} 19. c4 {[%emt 0:01:50]} Rfe8 {[%emt 0:00:38]} 20. cxd5 {[%emt 0:01:08]} Ne7 {[%emt 0:01:08]} 21. Rc2 {[%emt 0:04:26]} Rc7 {[%emt 0:01:51]} 22. Rfc1 {[%emt 0:00:57]} Rec8 {[%emt 0:01:10] normal} 1-0

[Event "DVM U12w 2023"]
[Site "Magdeburg"]
[Date "2023.12.27"]
[Round "2"]
[White "Haas, Valentina"]
[Black "Sauermann, Paula"]
[Result "1-0"]
[WhiteElo "1010"]
[BlackElo "754"]
[PlyCount "109"]
[EventDate "2022.12.27"]
[EventType "team-tourn"]
[EventRounds "7"]
[EventCountry "GER"]
[TimeControl "40/5400+30:1800+30"]
[WhiteClock "1:24:55"]
[BlackClock "1:13:20"]

1. d4 {[%emt 0:00:04]} d5 {[%emt 0:00:06]} 2. e3 {[%emt 0:00:06]} Nf6 {[%emt 0:00:14]} 3. Bd3 {[%emt 0:00:07]} Be6 {[%emt 0:00:31]} 4. c3 {[%emt 0:00:13]} Nc6 {[%emt 0:00:16]} 5. f4 {[%emt 0:00:08]} Bg4 {[%emt 0:00:24]} 6. Nf3 {[%emt 0:00:14]} e6 {[%emt 0:00:31]} 7. h3 {[%emt 0:00:20]} Bxf3 {[%emt 0:00:26]} 8. Qxf3 {[%emt 0:00:11]} Bd6 {[%emt 0:00:35]} 9. Nd2 {[%emt 0:00:24]} O-O {[%emt 0:00:55]} 10. O-O {[%emt 0:00:22]} Re8 {[%emt 0:01:28]} 11. Qg3 {[%emt 0:00:19]} Nh5 {[%emt 0:01:46]} 12. Qg4 {[%emt 0:00:33]} Nf6 {[%emt 0:00:45]} 13. Qh4 {[%emt 0:00:40]} Nd7 {[%emt 0:02:03]} 14. Qxh7+ {[%emt 0:00:27]} Kf8 {[%emt 0:01:14]} 15. Rf3 {[%emt 0:01:32]} Qf6 {[%emt 0:02:11]} 16. Rg3 {[%emt 0:00:49]} Ke7 {[%emt 0:02:05]} 17. Rxg7 {[%emt 0:01:19]} Rh8 {[%emt 0:00:33]} 18. Rxf7+ {[%emt 0:01:05]} Qxf7 {[%emt 0:00:36]} 19. Qxf7+ {[%emt 0:00:14]} Kxf7 {[%emt 0:00:12]} 20. Nf3 {[%emt 0:00:42]} Rag8 {[%emt 0:00:36]} 21. Ng5+ {[%emt 0:00:37]} Ke7 {[%emt 0:01:17]} 22. Bd2 {[%emt 0:01:10]} Nf6 {[%emt 0:02:01]} 23. Kh2 {[%emt 0:01:25]} Ng4+ {[%emt 0:00:43]} 24. Kg3 {[%emt 0:00:28]} Rxg5 {[%emt 0:00:41]} 25. hxg4 {[%emt 0:00:00]} Rhg8 {[%emt 0:01:03]} 26. Be2 {[%emt 0:00:19]} Nd8 {[%emt 0:01:14]} 27. Rh1 {[%emt 0:00:33]} Nf7 {[%emt 0:03:01]} 28. Rh4 {[%emt 0:00:50]} Nh8 {[%emt 0:01:04]} 29. Kf2 {[%emt 0:00:37]} Ng6 {[%emt 0:00:22]} 30. Rh7+ {[%emt 0:00:23]} Kf6 {[%emt 0:01:40]} 31. fxg5+ {[%emt 0:00:50]} Kxg5 {[%emt 0:00:20]} 32. e4+ {[%emt 0:00:25]} Kf6 {[%emt 0:00:55]} 33. e5+ {[%emt 0:00:38]} Bxe5 {[%emt 0:00:35]} 34. g5+ {[%emt 0:00:31]} Kf5 {[%emt 0:00:57]} 35. Bd3+ {[%emt 0:00:59]} Kg4 {[%emt 0:00:40]} 36. dxe5 {[%emt 0:00:16]} Nxe5 {[%emt 0:00:44]} 37. Be2+ {[%emt 0:01:11]} Kf5 {[%emt 0:00:37]} 38. Rxc7 {[%emt 0:01:06]} Ng4+ {[%emt 0:01:11]} 39. Bxg4+ {[%emt 0:00:15]} Kxg4 {[%emt 0:00:16]} 40. Rxb7 {[%emt 0:02:35]} Rf8+ {[%emt 0:00:19]} 41. Kg1 {[%emt 0:30:29]} e5 {[%emt 0:30:20]} 42. Rd7 {[%emt 0:01:01]} Kg3 {[%emt 0:00:48]} 43. g6 {[%emt 0:00:30]} Rf2 {[%emt 0:01:10]} 44. g7 {[%emt 0:00:21]} Rxg2+ {[%emt 0:00:08]} 45. Kf1 {[%emt 0:00:37]} Kf3 {[%emt 0:00:32]} 46. Rf7+ {[%emt 0:00:42]} Ke4 {[%emt 0:00:32]} 47. Bh6 {[%emt 0:00:43]} Rxb2 {[%emt 0:00:25]} 48. g8=Q {[%emt 0:00:21]} Rb1+ {[%emt 0:00:14]} 49. Kg2 {[%emt 0:00:26]} Rb2+ {[%emt 0:00:19]} 50. Kg3 {[%emt 0:00:34]} d4 {[%emt 0:00:51]} 51. Qg4+ {[%emt 0:00:42]} Kd3 {[%emt 0:00:24]} 52. Rf3+ {[%emt 0:00:30]} Kc4 {[%emt 0:00:15]} 53. Qc8+ {[%emt 0:00:24]} Kd5 {[%emt 0:00:33]} 54. c4+ {[%emt 0:00:18]} Ke4 {[%emt 0:00:32]} 55. Qg4# {[%emt 0:02:42] normal} 1-0

[Event "DVM U12w 2023"]
[Site "Magdeburg"]
[Date "2023.12.27"]
[Round "2"]
[White "Kuhlmann, Naya"]
[Black "Albrecht, Sidney Jenna"]
[Result "0-1"]
[WhiteElo "1005"]
[BlackElo "1188"]
[PlyCount "65"]
[EventDate "2022.12.27"]
[EventType "team-tourn"]
[EventRounds "7"]
[EventCountry "GER"]
[TimeControl "40/5400+30:1800+30"]
[WhiteClock "1:12:16"]
[BlackClock "1:00:44"]

1. e4 {[%emt 0:00:02]} c5 {[%emt 0:00:07]} 2. d4 {[%emt 0:00:17]} cxd4 {[%emt 0:00:06]} 3. Nf3 {[%emt 0:00:13]} Nc6 {[%emt 0:00:11]} 4. Nxd4 {[%emt 0:00:08]} g6 {[%emt 0:00:16]} 5. Nf3 {[%emt 0:01:11]} Bg7 {[%emt 0:00:10]} 6. Bc4 {[%emt 0:00:48]} Nf6 {[%emt 0:00:35]} 7. Nc3 {[%emt 0:00:12]} O-O {[%emt 0:00:16]} 8. O-O {[%emt 0:00:05]} Re8 {[%emt 0:01:10]} 9. Re1 {[%emt 0:01:45]} d6 {[%emt 0:05:50]} 10. Bf4 {[%emt 0:01:17]} Nh5 {[%emt 0:03:22]} 11. Be3 {[%emt 0:00:38]} Bg4 {[%emt 0:02:49]} 12. h3 {[%emt 0:02:39]} Bxf3 {[%emt 0:02:31]} 13. Qxf3 {[%emt 0:00:15]} Ne5 {[%emt 0:00:30]} 14. Qe2 {[%emt 0:01:46]} Nxc4 {[%emt 0:01:34]} 15. Qxc4 {[%emt 0:01:02]} Rc8 {[%emt 0:00:36]} 16. Qd3 {[%emt 0:00:33]} a6 {[%emt 0:02:56]} 17. Bd4 {[%emt 0:02:00]} Bxd4 {[%emt 0:04:38]} 18. Qxd4 {[%emt 0:00:18]} e5 {[%emt 0:00:19]} 19. Qd5 {[%emt 0:04:45]} b5 {[%emt 0:01:40]} 20. Re2 {[%emt 0:01:18]} Nf4 {[%emt 0:00:26]} 21. Qd2 {[%emt 0:01:01]} Nxe2+ {[%emt 0:00:10]} 22. Qxe2 {[%emt 0:00:17]} Qd7 {[%emt 0:04:01]} 23. Nd5 {[%emt 0:00:31]} Qe6 {[%emt 0:01:11]} 24. Qf3 {[%emt 0:00:48]} f5 {[%emt 0:01:10]} 25. Ne3 {[%emt 0:02:20]} f4 {[%emt 0:01:32]} 26. Nd5 {[%emt 0:01:07]} Rxc2 {[%emt 0:01:07]} 27. a3 {[%emt 0:02:56]} Rxb2 {[%emt 0:01:35]} 28. Nc7 {[%emt 0:00:16]} Qd7 {[%emt 0:01:51]} 29. Nxe8 {[%emt 0:00:36]} Qxe8 {[%emt 0:00:08]} 30. Qc3 {[%emt 0:01:09]} Re2 {[%emt 0:00:52]} 31. f3 {[%emt 0:00:26]} Re3 {[%emt 0:00:57]} 32. Qd2 {[%emt 0:00:55]} Qc6 {[%emt 0:01:10]} 33. Rd1 {[%emt 0:01:10] normal} 0-1

[Event "DVM U12w 2023"]
[Site "Magdeburg"]
[Date "2023.12.27"]
[Round "2"]
[White "Wolf, Aurelia"]
[Black "Özdemir, Anna Valentina"]
[Result "0-1"]
[WhiteElo "1001"]
[BlackElo "693"]
[PlyCount "118"]
[EventDate "2022.12.27"]
[EventType "team-tourn"]
[EventRounds "7"]
[EventCountry "GER"]
[TimeControl "40/5400+30:1800+30"]
[WhiteClock "1:18:36"]
[BlackClock "1:35:45"]

1. e4 {[%emt 0:00:03]} e5 {[%emt 0:00:05]} 2. Nf3 {[%emt 0:00:05]} Nc6 {[%emt 0:00:10]} 3. Bc4 {[%emt 0:00:05]} Bb4 {[%emt 0:00:32]} 4. a3 {[%emt 0:00:41]} Be7 {[%emt 0:00:15]} 5. c3 {[%emt 0:00:07]} Nf6 {[%emt 0:00:13]} 6. d4 {[%emt 0:00:15]} exd4 {[%emt 0:00:16]} 7. cxd4 {[%emt 0:00:26]} Nxe4 {[%emt 0:00:23]} 8. d5 {[%emt 0:00:36]} Na5 {[%emt 0:00:22]} 9. Bd3 {[%emt 0:00:39]} Nf6 {[%emt 0:00:26]} 10. b4 {[%emt 0:00:27]} Nxd5 {[%emt 0:00:41]} 11. bxa5 {[%emt 0:00:28]} Bf6 {[%emt 0:00:15]} 12. Ra2 {[%emt 0:00:19]} Bc3+ {[%emt 0:00:16]} 13. Bd2 {[%emt 0:00:23]} Qe7+ {[%emt 0:00:32]} 14. Be2 {[%emt 0:00:36]} Bxd2+ {[%emt 0:00:27]} 15. Qxd2 {[%emt 0:00:16]} Nf6 {[%emt 0:00:25]} 16. O-O {[%emt 0:00:21]} d6 {[%emt 0:00:08]} 17. Bb5+ {[%emt 0:01:05]} c6 {[%emt 0:00:15]} 18. Re1 {[%emt 0:00:16]} Be6 {[%emt 0:00:32]} 19. Bc4 {[%emt 0:00:25]} d5 {[%emt 0:00:11]} 20. Bb3 {[%emt 0:00:41]} O-O {[%emt 0:00:13]} 21. Ng5 {[%emt 0:00:24]} Qd6 {[%emt 0:01:10]} 22. Qd3 {[%emt 0:00:59]} c5 {[%emt 0:00:31]} 23. Qb5 {[%emt 0:00:51]} c4 {[%emt 0:00:36]} 24. Bc2 {[%emt 0:00:30]} Rab8 {[%emt 0:00:19]} 25. Bd1 {[%emt 0:01:44]} a6 {[%emt 0:00:11]} 26. Qa4 {[%emt 0:00:13]} b5 {[%emt 0:00:15]} 27. axb6 {[%emt 0:00:33]} Rxb6 {[%emt 0:00:30]} 28. Bf3 {[%emt 0:00:28]} Bd7 {[%emt 0:00:38]} 29. Qa5 {[%emt 0:00:42]} Rb5 {[%emt 0:00:27]} 30. Qc3 {[%emt 0:00:48]} h6 {[%emt 0:00:46]} 31. Nh3 {[%emt 0:00:23]} Qb6 {[%emt 0:00:12]} 32. Qc2 {[%emt 0:00:31]} d4 {[%emt 0:00:38]} 33. Nd2 {[%emt 0:04:42]} d3 {[%emt 0:00:17]} 34. Qxc4 {[%emt 0:00:32]} Be6 {[%emt 0:00:45]} 35. Rxe6 {[%emt 0:01:07]} fxe6 {[%emt 0:00:25]} 36. Qxd3 {[%emt 0:00:21]} Rd8 {[%emt 0:00:31]} 37. Qc4 {[%emt 0:03:02]} Rb1+ {[%emt 0:00:45]} 38. Nf1 {[%emt 0:00:29]} Rd4 {[%emt 0:01:07]} 39. Qc8+ {[%emt 0:00:59]} Rd8 {[%emt 0:00:22]} 40. Qc4 {[%emt 0:01:11]} Kh7 {[%emt 0:00:53]} 41. Be4+ {[%emt 0:30:51]} Nxe4 {[%emt 0:30:24]} 42. Qxe4+ {[%emt 0:00:12]} Kh8 {[%emt 0:00:21]} 43. g3 {[%emt 0:01:34]} Qb5 {[%emt 0:00:05]} 44. Kg2 {[%emt 0:01:05]} Qxf1+ {[%emt 0:00:11]} 45. Kf3 {[%emt 0:00:33]} Rb3+ {[%emt 0:00:20]} 46. Kf4 {[%emt 0:00:36]} Qxh3 {[%emt 0:00:21]} 47. Rc2 {[%emt 0:01:18]} Rf8+ {[%emt 0:00:25]} 48. Ke5 {[%emt 0:00:14]} Rb5+ {[%emt 0:00:25]} 49. Kd4 {[%emt 0:00:37]} Rd5+ {[%emt 0:00:23]} 50. Ke3 {[%emt 0:00:16]} Qh5 {[%emt 0:01:02]} 51. a4 {[%emt 0:01:30]} Re5 {[%emt 0:00:10]} 52. Kd3 {[%emt 0:00:21]} Rxe4 {[%emt 0:00:21]} 53. Kxe4 {[%emt 0:00:19]} Qf3+ {[%emt 0:00:08]} 54. Kd4 {[%emt 0:00:22]} e5+ {[%emt 0:00:23]} 55. Kc4 {[%emt 0:00:27]} Rc8+ {[%emt 0:00:14]} 56. Kb4 {[%emt 0:00:15]} Rxc2 {[%emt 0:00:19]} 57. Ka5 {[%emt 0:00:31]} Rb2 {[%emt 0:00:26]} 58. h4 {[%emt 0:00:48]} Qd5+ {[%emt 0:00:17]} 59. Kxa6 {[%emt 0:00:52]} Qa8# {[%emt 0:00:05] normal} 0-1

[Event "DVM U12w 2023"]
[Site "Magdeburg"]
[Date "2023.12.27"]
[Round "2"]
[White "Trush, Diana"]
[Black "Berger, Jennifer"]
[Result "0-1"]
[WhiteElo "980"]
[BlackElo "1210"]
[PlyCount "52"]
[EventDate "2022.12.27"]
[EventType "team-tourn"]
[EventRounds "7"]
[EventCountry "GER"]
[TimeControl "40/5400+30:1800+30"]
[WhiteClock "1:18:21"]
[BlackClock "1:12:40"]

1. e4 {[%emt 0:00:03]} e5 {[%emt 0:00:28]} 2. Nf3 {[%emt 0:00:20]} Nc6 {[%emt 0:00:12]} 3. Bc4 {[%emt 0:01:04]} Bc5 {[%emt 0:00:07]} 4. O-O {[%emt 0:00:29]} Nf6 {[%emt 0:00:28]} 5. d4 {[%emt 0:00:38]} Bxd4 {[%emt 0:02:19]} 6. Nxd4 {[%emt 0:00:41]} Nxd4 {[%emt 0:04:28]} 7. f4 {[%emt 0:03:57]} d6 {[%emt 0:00:26]} 8. fxe5 {[%emt 0:01:16]} dxe5 {[%emt 0:00:17]} 9. c3 {[%emt 0:01:18]} Nc6 {[%emt 0:02:17]} 10. Qf3 {[%emt 0:00:00]} O-O {[%emt 0:03:31]} 11. Bg5 {[%emt 0:00:00]} Qd6 {[%emt 0:04:27]} 12. Qg3 {[%emt 0:00:00]} Nxe4 {[%emt 0:01:27]} 13. Qg4 {[%emt 0:00:39]} Qc5+ {[%emt 0:00:41]} 14. Kh1 {[%emt 0:00:59]} Qxc4 {[%emt 0:00:10]} 15. Nd2 {[%emt 0:05:19]} Nf2+ {[%emt 0:00:35]} 16. Rxf2 {[%emt 0:00:27]} Qxg4 {[%emt 0:00:10]} 17. Be3 {[%emt 0:01:23]} Be6 {[%emt 0:01:10]} 18. Rf3 {[%emt 0:00:26]} Bd5 {[%emt 0:02:02]} 19. Rg3 {[%emt 0:00:13]} Qe6 {[%emt 0:00:39]} 20. c4 {[%emt 0:00:18]} Bxc4 {[%emt 0:00:54]} 21. Nxc4 {[%emt 0:00:10]} Qxc4 {[%emt 0:00:13]} 22. Bh6 {[%emt 0:00:16]} Qe6 {[%emt 0:00:40]} 23. Bxg7 {[%emt 0:00:18]} Ne7 {[%emt 0:00:47]} 24. Rf1 {[%emt 0:02:37]} Rfd8 {[%emt 0:01:28]} 25. Rf6 {[%emt 0:02:16]} Rd1+ {[%emt 0:00:42]} 26. Rf1 {[%emt 0:00:02]} Rxf1# {[%emt 0:00:12] normal} 0-1

[Event "DVM U12w 2023"]
[Site "Magdeburg"]
[Date "2023.12.27"]
[Round "2"]
[White "Poberezhna, Anna"]
[Black "Piffczyk, Sandra"]
[Result "0-1"]
[WhiteElo "951"]
[BlackElo "1105"]
[PlyCount "60"]
[EventDate "2022.12.27"]
[EventType "team-tourn"]
[EventRounds "7"]
[EventCountry "GER"]
[TimeControl "40/5400+30:1800+30"]
[BlackClock "0:50:20"]

1. e4 {[%emt 0:00:01]} e5 {[%emt 0:00:07]} 2. Nf3 {[%emt 0:00:05]} Nc6 {[%emt 0:00:14]} 3. Bc4 {[%emt 0:00:05]} Bc5 {[%emt 0:00:15]} 4. d3 {[%emt 0:00:23]} h6 {[%emt 0:00:48]} 5. Nc3 {[%emt 0:00:07]} Nf6 {[%emt 0:00:52]} 6. O-O {[%emt 0:00:09]} d6 {[%emt 0:00:36]} 7. h3 {[%emt 0:00:11]} O-O {[%emt 0:00:19]} 8. Be3 {[%emt 0:00:10]} Bxe3 {[%emt 0:02:17]} 9. fxe3 {[%emt 0:00:13]} Qe7 {[%emt 0:00:51]} 10. d4 {[%emt 0:00:35]} Be6 {[%emt 0:02:47]} 11. d5 {[%emt 0:00:11]} Na5 {[%emt 0:00:38]} 12. dxe6 {[%emt 0:01:02]} Nxc4 {[%emt 0:00:14]} 13. exf7+ {[%emt 0:00:21]} Qxf7 {[%emt 0:00:54]} 14. Re1 {[%emt 0:00:26]} Nxb2 {[%emt 0:00:39]} 15. Qc1 {[%emt 0:00:53]} Nc4 {[%emt 0:01:22]} 16. Rb1 {[%emt 0:01:16]} Rab8 {[%emt 0:03:49]} 17. Rd1 {[%emt 0:02:14]} Qg6 {[%emt 0:04:21]} 18. Rb4 {[%emt 0:02:11]} Nb6 {[%emt 0:03:14]} 19. Qb2 {[%emt 0:01:00]} a5 {[%emt 0:03:37]} 20. Rb5 {[%emt 0:00:25]} Nxe4 {[%emt 0:01:33]} 21. Nd5 {[%emt 0:00:57]} Nxd5 {[%emt 0:01:18]} 22. Rbxd5 {[%emt 0:00:59]} Rxf3 {[%emt 0:05:33]} 23. Qb1 {[%emt 0:00:29]} Nc3 {[%emt 0:01:35]} 24. Rxa5 {[%emt 0:00:19]} Kh7 {[%emt 0:02:13]} 25. Qb3 {[%emt 0:00:18]} Rxh3 {[%emt 0:02:46]} 26. Qxc3 {[%emt 0:02:34]} Rg3 {[%emt 0:04:26]} 27. Rd2 {[%emt 0:00:18]} Rf8 {[%emt 0:02:04]} 28. Qxc7 {[%emt 0:02:19]} Qf5 {[%emt 0:00:57]} 29. Qxb7 {[%emt 0:00:47]} Qe4 {[%emt 0:03:47]} 30. Qb1 {[%emt 0:04:55]} Qxe3+ {[%emt 0:51:24] normal Ra6} 0-1

[Event "DVM U12w 2023"]
[Site "Magdeburg"]
[Date "2023.12.27"]
[Round "2"]
[White "Wieckowicz, Bui Ha My"]
[Black "Fedorova, Marina"]
[Result "0-1"]
[WhiteElo "940"]
[BlackElo "1144"]
[PlyCount "22"]
[EventDate "2022.12.27"]
[EventType "team-tourn"]
[EventRounds "7"]
[EventCountry "GER"]
[TimeControl "40/5400+30:1800+30"]
[WhiteClock "1:06:06"]
[BlackClock "1:11:59"]

1. e4 {[%emt 0:00:01]} Nf6 {[%emt 0:00:09]} 2. Nc3 {[%emt 0:00:17]} d5 {[%emt 0:00:10]} 3. exd5 {[%emt 0:00:57]} Nxd5 {[%emt 0:00:10]} 4. Nxd5 {[%emt 0:00:05]} Qxd5 {[%emt 0:00:08]} 5. d4 {[%emt 0:01:07]} Nc6 {[%emt 0:01:04]} 6. Nf3 {[%emt 0:00:06]} Bg4 {[%emt 0:00:48]} 7. Be2 {[%emt 0:05:19]} O-O-O {[%emt 0:02:08]} 8. Be3 {[%emt 0:03:04]} g6 {[%emt 0:08:22]} 9. Qd2 {[%emt 0:01:47]} Bg7 {[%emt 0:08:39]} 10. O-O-O {[%emt 0:10:44]} Qxa2 {[%emt 0:00:06]} 11. h3 {[%emt 0:06:27]} Qa1# {[%emt 0:02:17] normal} 0-1